fUSD/lending_fUSD_20240821
["ID","MTS","AMOUNT","RATE_DAILY","PERIOD"]
[335465165,1724241040531,-2044.09,0.00014154,2]
[335465167,1724241040540,-2658.41,0.00014154,2]
[335465169,1724241040549,-2584.96,0.00014154,2]
[335465171,1724241040558,-10362.68,0.00014154,2]
[335465173,1724241040568,-3641.0,0.00014154,2]
[335465174,1724241040578,-8297.93,0.00014154,2]
[335465176,1724241040587,-151.0,0.00014154,2]
[335465178,1724241040596,-17528.05,0.00014154,2]
[335465180,1724241040606,-5517.73,0.00014154,2]
[335465182,1724241040615,-151.0,0.00014154,2]
[335465184,1724241040624,-5430.32,0.00014154,2]
[335465186,1724241040634,-1173.31,0.00014154,2]
[335465188,1724241040643,-151.0,0.00014154,2]
[335465190,1724241040652,-151.0,0.00014154,2]
[335465192,1724241040662,-151.0,0.00014154,2]
[335465194,1724241040671,-151.0,0.00014154,2]
[335465196,1724241040681,-544.24,0.00014154,2]
[335465198,1724241040691,-151.0,0.00014155,2]
[335465200,1724241040700,-273.866949,0.00014155,2]
[335465202,1724241040714,-151.0,0.00014155,2]
[335465204,1724241040723,-151.0,0.00014155,2]
[335465206,1724241040732,-151.0,0.00014155,2]
[335465208,1724241040743,-180.221422,0.00014155,2]
[335465210,1724241040754,-44732.14811813,0.00014161,2]
[335465212,1724241040763,-1532.18805679,0.00014171,2]
[335465214,1724241040773,-1532.18805679,0.00014189,2]
[335465216,1724241040783,-3525.15301012,0.0001419,3]
[335465218,1724241040792,-12338.0355354,0.000142,3]
[335465220,1724241040802,-3525.15301012,0.00014201,3]
[335465222,1724241040812,-55271.3396893,0.00014201,3]
[335465224,1724241040821,-151.0,0.00014201,2]
[335465226,1724241040831,-151.0,0.00014201,2]
[335465228,1724241040840,-151.0,0.00014201,2]
[335465230,1724241040849,-151.0,0.00014201,2]
[335465231,1724241040859,-151.0,0.00014202,2]
[335465233,1724241040868,-36847.5597929,0.00014202,3]
[335465235,1724241040877,-1532.18805679,0.00014206,2]
[335465237,1724241040887,-160.8164973,0.00014207,2]
[335465239,1724241040896,-500.0,0.0001421,2]
[335465241,1724241040906,-725.23,0.0001421,2]
[335465243,1724241040915,-500.0,0.0001421,2]
[335465245,1724241040924,-500.0,0.0001421,2]
[335465246,1724241040933,-500.0,0.0001421,2]
[335465248,1724241040942,-500.0,0.0001421,2]
[335465250,1724241040952,-500.0,0.0001421,2]
[335465252,1724241040963,-500.0,0.0001421,2]
[335465254,1724241040972,-500.0,0.0001421,2]
[335465256,1724241040981,-500.0,0.0001421,2]
[335465258,1724241040990,-1032.09,0.0001421,2]
[335465259,1724241040999,-500.0,0.0001421,2]
[335465261,1724241041008,-500.0,0.0001421,2]
[335465263,1724241041019,-500.0,0.0001421,2]
[335465265,1724241041029,-500.0,0.0001421,2]
[335465267,1724241041038,-511.02,0.0001421,2]
[335465269,1724241041047,-500.0,0.0001421,2]
[335465271,1724241041060,-691.97,0.0001421,2]
[335465273,1724241041069,-751.59,0.0001421,2]
[335465275,1724241041079,-1365.2,0.0001421,2]
[335465277,1724241041088,-4490.02,0.0001421,2]
[335465279,1724241041098,-2745.06,0.0001421,2]
[335465281,1724241041107,-500.0,0.0001421,2]
[335465282,1724241041116,-541.35,0.0001421,2]
[335465284,1724241041127,-501.54,0.0001421,2]
[335465286,1724241041136,-151.0,0.0001421,2]
[335465288,1724241041145,-500.0,0.0001421,2]
[335465290,1724241041155,-151.0,0.0001421,2]
[335465292,1724241041164,-151.0,0.0001421,2]
[335465294,1724241041174,-151.0,0.0001421,2]
[335465296,1724241041184,-500.0,0.0001421,2]
[335465298,1724241041193,-500.0,0.0001421,2]
[335465300,1724241041202,-500.0,0.0001421,2]
[335465302,1724241041212,-500.0,0.0001421,2]
[335465304,1724241041222,-500.0,0.0001421,2]
[335465306,1724241041231,-500.0,0.0001421,2]
[335465308,1724241041240,-500.0,0.0001421,2]
[335465310,1724241041249,-500.0,0.0001421,2]
[335465312,1724241041259,-151.0,0.0001421,2]
[335465314,1724241041268,-151.0,0.0001421,2]
[335465316,1724241041278,-500.0,0.0001421,2]
[335465318,1724241041288,-493.93029625,0.0001421,2]
[335465320,1724241041297,-169.25826278,0.0001421,2]
[335465322,1724241041307,-500.0,0.0001421,2]
[335465324,1724241041315,-500.0,0.0001421,2]
[335465325,1724241041325,-500.0,0.00014211,2]
[335465327,1724241041334,-500.0,0.00014211,2]
[335465329,1724241041344,-500.0,0.00014211,2]
[335465331,1724241041354,-500.0,0.00014211,2]
[335465333,1724241041363,-500.0,0.00014211,2]
[335465335,1724241041372,-151.0,0.00014211,2]
[335465337,1724241041382,-1193.42,0.00014211,2]
[335465355,1724241041391,-800.7,0.00014211,2]
[335465357,1724241041560,-691.51,0.00014211,2]
[335465359,1724241041569,-151.0,0.00014211,2]
[335465361,1724241041578,-151.0,0.00014211,2]
[335465363,1724241041588,-1731.03,0.00014211,2]
[335465365,1724241041598,-913.62,0.00014211,2]
[335465367,1724241041607,-2022.52,0.00014211,2]
[335465368,1724241041616,-4380.26,0.00014211,2]
[335465370,1724241041626,-500.0,0.00014211,2]
[335465372,1724241041636,-500.0,0.00014211,2]
[335465374,1724241041645,-151.0,0.00014211,2]
[335465376,1724241041655,-197.36312,0.00014211,2]
[335465377,1724241041664,-500.0,0.00014211,2]
[335465379,1724241041674,-500.0,0.00014211,2]
[335465380,1724241041683,-151.0,0.00014211,2]
[335465383,1724241041695,-151.0,0.00014211,2]
[335465384,1724241041705,-151.0,0.00014211,2]
[335465386,1724241041715,-500.0,0.00014211,2]
[335465388,1724241041725,-151.0,0.00014211,2]
[335465390,1724241041734,-151.0,0.00014211,2]
[335465392,1724241041744,-151.0,0.00014211,2]
[335465394,1724241041754,-151.0,0.00014211,2]
[335465395,1724241041764,-151.0,0.00014211,2]
[335465397,1724241041773,-500.0,0.00014211,2]
[335465399,1724241041782,-151.0,0.00014211,2]
[335465401,1724241041792,-151.0,0.00014211,2]
[335465403,1724241041801,-180.074084,0.00014211,2]
[335465405,1724241041811,-151.0,0.00014211,2]
[335465407,1724241041820,-151.0,0.00014211,2]
[335465409,1724241041830,-241.718509,0.00014211,2]
[335465411,1724241041839,-387.94199664,0.00014211,2]
[335465413,1724241041848,-500.0,0.00014211,2]
[335465415,1724241041858,-500.0,0.00014211,2]
[335465416,1724241041867,-151.0,0.00014211,2]
[335465417,1724241041877,-151.0,0.00014211,2]
[335465418,1724241041886,-151.0,0.00014211,2]
[335465419,1724241041896,-500.0,0.00014211,2]
[335465420,1724241041905,-775.03,0.00014211,2]
[335465421,1724241041915,-301.17318112,0.00014211,2]
[335465422,1724241041924,-1535.06,0.00014211,2]
[335465423,1724241041933,-500.0,0.00014211,2]
[335465424,1724241041942,-1393.61,0.00014211,2]
[335465425,1724241041951,-8658.65,0.00014211,2]
[335465426,1724241041961,-393.42890962,0.00014211,2]
[335465427,1724241041970,-3771.15,0.00014211,2]
[335465428,1724241041980,-234.427626,0.00014211,2]
[335465429,1724241041989,-234.427626,0.00014211,2]
[335465430,1724241041998,-234.427626,0.00014211,2]
[335465431,1724241042009,-234.427626,0.00014211,2]
[335465432,1724241042018,-592.0,0.00014211,2]
[335465433,1724241042027,-234.427626,0.00014211,2]
[335465434,1724241042037,-151.0,0.00014211,2]
[335465435,1724241042048,-234.427626,0.00014211,2]
[335465436,1724241042059,-151.0,0.00014211,2]
[335465437,1724241042068,-234.427626,0.00014211,2]
[335465438,1724241042077,-151.0,0.00014211,2]
[335465439,1724241042086,-234.427626,0.00014211,2]
[335465440,1724241042097,-500.0,0.00014211,2]
[335465441,1724241042106,-17063.92,0.00014211,2]
[335465442,1724241042115,-500.0,0.00014211,2]
[335465444,1724241042126,-151.0,0.00014211,2]
[335465446,1724241042135,-246.562379,0.00014211,2]
[335465448,1724241042144,-43711.37,0.00014211,2]
[335465449,1724241042153,-1796.44,0.00014211,2]
[335465451,1724241042162,-4196.76,0.00014211,2]
[335465453,1724241042171,-151.0,0.00014211,2]
[335465455,1724241042180,-151.0,0.00014211,2]
[335465457,1724241042190,-152.3795,0.00014211,2]
[335465459,1724241042200,-151.0,0.00014211,2]
[335465461,1724241042212,-4440.39,0.00014211,2]
[335465463,1724241042221,-13248.66,0.00014211,2]
[335465465,1724241042230,-1038.09,0.00014211,2]
[335465467,1724241042239,-2145.69,0.00014211,2]
[335465469,1724241042249,-2979.41,0.00014211,2]
[335465471,1724241042258,-1521.61,0.00014211,2]
[335465473,1724241042267,-3072.1,0.00014211,2]
[335465475,1724241042276,-151.0,0.00014211,2]
[335465476,1724241042286,-500.0,0.00014211,2]
[335465478,1724241042296,-500.0,0.00014211,2]
[335465480,1724241042305,-1011.44,0.00014211,2]
[335465482,1724241042315,-500.0,0.00014211,2]
[335465484,1724241042324,-230.632728,0.00014211,2]
[335465486,1724241042334,-151.0,0.00014211,2]
[335465488,1724241042343,-151.0,0.00014212,2]
[335465490,1724241042353,-151.0,0.00014212,2]
[335465492,1724241042362,-151.0,0.00014212,2]
[335465494,1724241042371,-2326.99306,0.00014212,2]
[335465495,1724241042381,-151.0,0.00014212,2]
[335465496,1724241042390,-500.0,0.00014212,2]
[335465497,1724241042400,-582.4215,0.00014212,2]
[335465498,1724241042410,-357.59253842,0.00014224,2]
[335465499,1724241042420,-1532.18805679,0.00014224,2]
[335465500,1724241042430,-1037.38834763,0.00014224,2]
[335465501,1724241042439,-151.98228612,0.00014224,2]
[335465502,1724241042448,-78.50773217,0.00014224,2]
[335465503,1724241042462,-250.0,0.00014224,2]
[335465504,1724241042474,-385.20017267,0.00014224,2]
[335465505,1724241042484,-234.427626,0.00014245,2]
[335465506,1724241042493,-234.427626,0.00014245,2]
[335465507,1724241042503,-150.82,0.00014271,2]
[335465508,1724241042512,-41.71323902,0.0001428,3]
[335465509,1724241042554,-1831.82850427,0.00011839,2]
[335465510,1724241042564,-18382.06665738,0.0001428,3]
[335465511,1724241042574,-36847.5597929,0.00014281,3]
[335465512,1724241042584,-18423.7798964,0.00014282,3]
[335465513,1724241042593,-15814.28429502,0.00014283,3]
[335465514,1724241042617,-616.89321857,0.00014283,3]
[335465515,1724241042628,-1992.60238281,0.00014283,3]
[335465516,1724241042638,-14285.04695896,0.00014288,3]
[335465517,1724241042657,-4138.73293744,0.00014288,3]
[335465518,1724241042667,-500.0,0.0001429,2]
[335465519,1724241042677,-151.0,0.00014291,2]
[335465520,1724241042687,-234.427626,0.00014291,2]
[335465521,1724241042697,-234.427626,0.00014291,2]
[335465522,1724241042709,-151.0,0.00014291,2]
[335465523,1724241042718,-36847.5597929,0.00014291,3]
[335465524,1724241042727,-191.48599535,0.00014291,2]
[335465525,1724241042737,-151.0,0.00014292,2]
[335465526,1724241042747,-151.0,0.00014292,2]
[335465527,1724241042756,-151.0,0.00014292,2]
[335465528,1724241042766,-18423.7798964,0.00014293,3]
[335465529,1724241042776,-18423.7798964,0.00014294,3]
[335465530,1724241042785,-151.0,0.00014298,2]
[335465531,1724241042795,-234.427626,0.00014298,2]
[335465532,1724241042806,-234.427626,0.00014298,2]
[335465533,1724241042816,-151.0,0.00014298,2]
[335465534,1724241042826,-2262.92862297,0.000143,2]
[335465535,1724241042836,-163.287355,0.000143,2]
[335465536,1724241042845,-163.287355,0.000143,2]
[335465537,1724241042855,-151.0,0.000143,2]
[335465538,1724241042864,-500.0,0.000143,2]
[335465539,1724241042874,-1187.0,0.000143,2]
[335465540,1724241042884,-18423.7798964,0.000143,3]
[335465541,1724241042894,-150.82,0.000143,2]
[335465542,1724241042904,-500.0,0.00014301,2]
[335465543,1724241042914,-500.0,0.00014301,2]
[335465544,1724241042923,-543.36579949,0.00014301,2]
[335465545,1724241042932,-151.0,0.00014301,2]
[335465546,1724241042942,-151.0,0.00014301,2]
[335465547,1724241042951,-500.0,0.00014301,2]
[335465548,1724241042963,-500.0,0.00014301,2]
[335465549,1724241042972,-163.287355,0.00014301,2]
[335465550,1724241042981,-163.287355,0.00014301,2]
[335465551,1724241042990,-163.287355,0.00014301,2]
[335465552,1724241043000,-163.287355,0.00014301,2]
[335465553,1724241043010,-1668.95,0.00014301,2]
[335465554,1724241043020,-1577.38,0.00014301,2]
[335465555,1724241043029,-3171.1,0.00014301,2]
[335465556,1724241043039,-500.0,0.00014301,2]
[335465557,1724241043049,-3687.73,0.00014301,2]
[335465559,1724241043063,-2560.92,0.00014301,2]
[335465561,1724241043072,-500.0,0.00014301,2]
[335465562,1724241043081,-2647.57,0.00014301,2]
[335465563,1724241043090,-500.0,0.00014301,2]
[335465564,1724241043100,-1469.65,0.00014301,2]
[335465565,1724241043109,-620.81,0.00014301,2]
[335465566,1724241043118,-500.0,0.00014301,2]
[335465568,1724241043128,-1075.02,0.00014301,2]
[335465569,1724241043138,-515.086566,0.00014301,2]
[335465570,1724241043152,-538.94202772,0.00014301,2]
[335465584,1724241043347,-252.67886842,0.00014111,2]
[335465585,1724241043358,-293.4,0.00014111,2]
[335465623,1724241288647,1050.0,0.0001,2]
[335465626,1724241821799,324.98,0.0001078,2]
[335465627,1724241927989,2343.32801118,0.00010999,2]
[335465628,1724241957445,153.06,0.00010959,2]
[335465629,1724241989357,200.34868051,0.00010904,2]
[335465631,1724242039967,530.12644453,0.00010999,2]
[335465635,1724242125278,6536.25549814,0.00010999,2]
[335465652,1724242231516,-295.33202042,0.00012,2]
[335465653,1724242231528,-489.88797958,0.00012,2]
[335465654,1724242237741,-314.78,0.00012,2]
[335465655,1724242237751,-317.01806701,0.00012126,2]
[335465656,1724242237761,-238.23593949,0.00012601,2]
[335465873,1724242240004,-11.76406051,0.00012601,2]
[335465875,1724242240014,-583.64943749,0.00012602,2]
[335466407,1724242245641,-506.10056251,0.00012602,2]
[335466409,1724242245650,-171.66,0.00012607,2]
[335466411,1724242245660,-500.0,0.00012613,2]
[335466413,1724242245669,-150.0,0.00012655,2]
[335466415,1724242245679,-600.0,0.00012677,2]
[335466417,1724242245689,-1632.18837989,0.00012711,2]
[335466421,1724242245715,-367.81162011,0.00012711,2]
[335466423,1724242245725,-245.02,0.0001285,2]
[335466425,1724242245734,-150.0,0.00012871,2]
[335466427,1724242245744,-150.0,0.00012871,2]
[335466429,1724242245754,-150.0,0.00012871,2]
[335466431,1724242245763,-150.0,0.00012871,2]
[335466433,1724242245773,-202.54,0.00012926,2]
[335466435,1724242245783,-250.0,0.00012947,2]
[335466437,1724242245792,-210.90606601,0.00013001,2]
[335466439,1724242245802,-207.82357689,0.00013001,2]
[335466441,1724242245812,-292.76862131,0.00013042,2]
[335466443,1724242245821,-547.15346494,0.00013042,2]
[335466445,1724242245831,-258.65495604,0.00013042,2]
[335466447,1724242245840,-249.30717663,0.00013042,2]
[335466449,1724242245850,-324.98,0.00013044,2]
[335466451,1724242245860,-155.0,0.00013052,2]
[335466452,1724242245869,-1875.82511349,0.00013052,2]
[335466455,1724242245882,-1529.56400104,0.00013052,2]
[335466457,1724242245891,-499.99,0.00013172,2]
[335466458,1724242245902,-896.18158446,0.00013172,2]
[335466469,1724242364299,280.95482892,0.00017397,120]
[335466470,1724242631744,159.22,0.00010959,2]
[335466472,1724242794326,342.41,0.00010823,2]
[335466473,1724242816381,292.76862131,0.00010999,2]
[335466474,1724242849042,155.0,0.00010999,2]
[335466475,1724242960480,3087.68680243,0.00010999,2]
[335466476,1724243134146,1278.55001758,0.00010999,2]
[335466477,1724243155704,160.39,0.00010959,2]
[335466478,1724243280751,1156.77877725,0.0001,2]
[335466479,1724243349284,155.0,0.00010999,2]
[335466480,1724243390786,343.55,0.0001052,2]
[335466488,1724243431688,-628.42,0.00012089,2]
[335466489,1724243431700,-293.41476327,0.00012089,2]
[335466490,1724243431711,-2248.6741294,0.00012089,2]
[335466491,1724243431734,-234.88022186,0.00012089,2]
[335466492,1724243431743,-313.76877667,0.00012089,2]
[335466493,1724243431752,-155.0,0.00012121,2]
[335466494,1724243431761,-191.35552983,0.00012125,2]
[335466495,1724243431772,-108.64447017,0.00012125,2]
[335466496,1724243431781,-144.84908111,0.00012126,2]
[335466497,1724243431844,-11542.15249262,0.00012126,2]
[335466499,1724243431856,-2852.7448324,0.00012126,2]
[335466501,1724243431867,-996.20276315,0.00012126,2]
[335466503,1724243431877,-679.921762,0.00012126,2]
[335466516,1724243437683,-528.25204486,0.00012126,2]
[335466517,1724243437740,-311.60322069,0.00012126,2]
[335466518,1724243437920,-316.85497348,0.00012126,2]
[335466520,1724243437930,-272.53,0.00012435,2]
[335466522,1724243437939,-250.0,0.00012458,2]
[335466524,1724243437949,-250.0,0.00012478,2]
[335466526,1724243437958,-1607.94443947,0.00012478,2]
[335466528,1724243437968,-1235.62,0.00012484,2]
[335466530,1724243437978,-150.0,0.0001252,2]
[335466532,1724243437987,-1500.0,0.00012578,2]
[335466533,1724243437996,-3485.55,0.00012664,2]
[335466535,1724243438006,-1000.0,0.00012681,2]
[335466537,1724243438015,-150.0,0.00012699,2]
[335466539,1724243438025,-293.39806584,0.00012699,2]
[335466541,1724243438034,-170.44,0.00012727,2]
[335466543,1724243438043,-343.55,0.00012784,2]
[335466545,1724243438053,-172.87,0.00012805,2]
[335466547,1724243438062,-887.01,0.00012805,2]
[335466549,1724243438072,-169.79,0.00012894,2]
[335466551,1724243438082,-156.3474976,0.0001294,2]
[335466553,1724243438092,-150.0,0.00012999,2]
[335466555,1724243438102,-15963.66384883,0.00013,2]
[335466557,1724243438114,-1886.88,0.00013,2]
[335466560,1724243438125,-343.26358931,0.00013,2]
[335466562,1724243438137,-316.9569075,0.00013,2]
[335466564,1724243438155,-139.20973476,0.00013,2]
[335466566,1724243438165,-271.33504399,0.00013,2]
[335466568,1724243438176,-1120.66502401,0.00013,2]
[335466571,1724243438187,-3607.999932,0.00013,2]
[335466573,1724243438197,-270.58164358,0.00013001,2]
[335466574,1724243438206,-8333.63882697,0.00013002,2]
[335466577,1724243438217,-1780.85001017,0.00013002,2]
[335466579,1724243438229,-2699.05116286,0.00013002,2]
[335466581,1724243438238,-515.27605672,0.00013042,2]
[335466583,1724243438247,-524.74723859,0.00013052,2]
[335466585,1724243438257,-2387.97522321,0.00013052,2]
[335466586,1724243438266,-499.99,0.00013087,2]
[335466588,1724243438276,-410.016937,0.00013117,2]
[335466590,1724243438285,-150.0,0.00013169,2]
[335466592,1724243438295,-6411.0579896,0.00013181,2]
[335466594,1724243438305,-444.31792408,0.000132,2]
[335466597,1724243438316,-998.52381322,0.000132,2]
[335466599,1724243438327,-1527.0295442,0.000132,2]
[335466631,1724243439760,-422.619021,0.0001306,2]
[335466632,1724243439772,-2577.380979,0.0001306,2]
[335466633,1724243439781,-3000.0,0.0001313,2]
[335466634,1724243439791,-9353.79581282,0.000132,2]
[335466635,1724243439800,-3000.0,0.000132,2]
[335466636,1724243439810,-3000.0,0.0001328,2]
[335466637,1724243439822,-963.12546208,0.00013292,2]
[335466638,1724243439832,-500.0,0.00013292,2]
[335466639,1724243439841,-963.12546208,0.00013292,2]
[335466640,1724243439850,-300.0,0.00013337,2]
[335466641,1724243439861,-3000.0,0.0001336,2]
[335466642,1724243439871,-2620.17439302,0.0001344,2]
[335466643,1724243439883,-379.82560698,0.0001344,2]
[335466644,1724243439895,-147.56995525,0.000135,2]
[335466645,1724243439915,-852.43004475,0.000135,2]
[335466646,1724243439925,-300.92,0.00013507,2]
[335466647,1724243439934,-356.86,0.00013507,2]
[335466648,1724243439943,-150.0,0.00013507,2]
[335466649,1724243439953,-426.79,0.00013507,2]
[335466650,1724243439962,-150.0,0.00013507,2]
[335466651,1724243439971,-150.0,0.00013639,2]
[335466652,1724243439981,-530.48371925,0.000137,2]
[335466653,1724243439993,-469.51628075,0.000137,2]
[335466654,1724243440002,-237.60708619,0.0001375,2]
[335466655,1724243440014,-762.39291381,0.0001375,2]
[335466656,1724243440024,-328.2488375,0.0001385,2]
[335466657,1724243440034,-511.50453931,0.0001385,2]
[335466658,1724243440044,-760.53798217,0.0001385,2]
[335466659,1724243440054,-519.38,0.0001389,3]
[335466660,1724243440064,-259.69,0.0001389,3]
[335466661,1724243440074,-2500.0,0.00013899,2]
[335466662,1724243440083,-26725.17590113,0.000139,2]
[335466663,1724243440095,-337.14780967,0.000139,2]
[335466664,1724243440107,-1103.72105392,0.000139,2]
[335466665,1724243440118,-3597.06142822,0.000139,2]
[335466666,1724243440129,-619.16244216,0.000139,2]
[335466667,1724243440139,-412.89443407,0.000139,2]
[335466668,1724243440150,-1000.0,0.00013908,2]
[335466669,1724243440160,-368.9649527,0.00013908,2]
[335466670,1724243440169,-8229.3478,0.00013909,2]
[335466671,1724243440179,-301.39600896,0.00013909,2]
[335466672,1724243442303,-5647.230969,0.00013909,2]
[335466673,1724243442362,-1551.37302204,0.00013909,2]
[335466675,1724243442371,-368.96495268,0.00013945,2]
[335466677,1724243442380,-619.16244216,0.00013947,2]
[335466679,1724243442389,-368.96495268,0.00013981,2]
[335466680,1724243442402,-306.5078901,0.0001399,2]
[335466681,1724243442411,-165.74195783,0.0001399,2]
[335466682,1724243442420,-31763.10619293,0.00013992,2]
[335466683,1724243442429,-619.16244216,0.00013994,2]
[335466685,1724243442438,-174.00680136,0.00013997,3]
[335466686,1724243442447,-150.82,0.00013997,2]
[335466687,1724243442456,-696.02720544,0.00013998,3]
[335466688,1724243442465,-34164.1892061,0.00013998,3]
[335466689,1724243442474,-150.82,0.00013998,2]
[335466690,1724243442483,-150.82,0.00013998,2]
[335466691,1724243442492,-150.82,0.00013998,2]
[335466692,1724243442501,-760.86,0.00013998,2]
[335466693,1724243442511,-617.88417316,0.00013998,2]
[335466694,1724243442520,-1550.22,0.00013998,2]
[335466695,1724243442529,-500.0,0.00013998,2]
[335466696,1724243442538,-500.0,0.00013998,2]
[335466697,1724243442547,-500.0,0.00013998,2]
[335466699,1724243442556,-500.0,0.00013998,2]
[335466700,1724243442565,-20000.0,0.00013998,2]
[335466702,1724243442574,-500.0,0.00013998,2]
[335466704,1724243442583,-399.69754442,0.00013998,2]
[335466706,1724243442592,-408.70465492,0.00013998,2]
[335466707,1724243442601,-500.0,0.00013998,2]
[335466709,1724243442611,-500.0,0.00013998,2]
[335466712,1724243442619,-352.42300048,0.00013998,2]
[335466714,1724243442628,-459.93083446,0.00013998,2]
[335466717,1724243442637,-500.0,0.00013998,2]
[335466720,1724243442647,-500.0,0.00013998,2]
[335466723,1724243442656,-500.0,0.00013998,2]
[335466725,1724243442665,-500.0,0.00013998,2]
[335466729,1724243442674,-500.0,0.00013998,2]
[335466732,1724243442683,-500.0,0.00013998,2]
[335466734,1724243442692,-559.00628049,0.00013998,2]
[335466735,1724243442701,-500.0,0.00013998,2]
[335466737,1724243442712,-500.0,0.00013998,2]
[335466739,1724243442725,-151.0,0.00013999,2]
[335466742,1724243442733,-187903.040634,0.00013999,3]
[335466745,1724243442743,-150.82,0.00013999,2]
[335466748,1724243442752,-150.82,0.00013999,2]
[335466751,1724243442761,-150.82,0.00013999,2]
[335466754,1724243442769,-307.99999999,0.00014,3]
[335466756,1724243442778,-642.56,0.00014,3]
[335466758,1724243442787,-157.70896675,0.00014005,2]
[335466760,1724243442796,-500.0,0.00014006,2]
[335466762,1724243442806,-500.0,0.00014006,2]
[335466764,1724243442818,-203.576718,0.00014006,2]
[335466766,1724243442827,-500.0,0.00014006,2]
[335466767,1724243442836,-500.0,0.00014006,2]
[335466769,1724243442845,-5352.81,0.00014006,2]
[335466772,1724243442855,-9646.91,0.00014006,2]
[335466773,1724243442864,-3461.95,0.00014006,2]
[335466775,1724243442874,-500.0,0.00014007,2]
[335466777,1724243442885,-3941.04,0.00014007,2]
[335466779,1724243442896,-6896.02,0.00014007,2]
[335466781,1724243442906,-16153.72,0.00014007,2]
[335466783,1724243442916,-22008.43,0.00014007,2]
[335466785,1724243442925,-500.0,0.00014007,2]
[335466787,1724243442935,-1020.27,0.00014007,2]
[335466789,1724243442944,-6704.87,0.00014007,2]
[335466791,1724243442953,-8873.81,0.00014007,2]
[335466793,1724243442962,-5378.49,0.00014007,2]
[335466795,1724243442971,-2945.99,0.00014007,2]
[335466797,1724243442980,-6368.74,0.00014007,2]
[335466799,1724243442988,-2464.79,0.00014007,2]
[335466801,1724243442997,-3092.24,0.00014007,2]
[335466803,1724243443007,-2547.64,0.00014007,2]
[335466804,1724243443016,-2477.25,0.00014007,2]
[335466806,1724243443025,-9930.9,0.00014007,2]
[335466808,1724243443033,-500.0,0.00014007,2]
[335466810,1724243443042,-3489.29,0.00014007,2]
[335466812,1724243443051,-7952.19,0.00014007,2]
[335466814,1724243443060,-16797.72,0.00014007,2]
[335466816,1724243443069,-151.0,0.00014007,2]
[335466818,1724243443078,-5287.83,0.00014007,2]
[335466820,1724243443087,-5204.06,0.00014007,2]
[335466822,1724243443096,-1124.42,0.00014007,2]
[335466824,1724243443105,-500.0,0.00014008,2]
[335466840,1724243443255,-500.0,0.00014008,2]
[335466842,1724243443264,-500.0,0.00014008,2]
[335466844,1724243443274,-510.22,0.00014008,2]
[335466846,1724243443283,-500.0,0.00014008,2]
[335466848,1724243443292,-500.0,0.00014008,2]
[335466850,1724243443301,-500.0,0.00014008,2]
[335466852,1724243443310,-500.0,0.00014008,2]
[335466854,1724243443319,-500.0,0.00014008,2]
[335466856,1724243443329,-500.0,0.00014008,2]
[335466858,1724243443338,-578.56,0.00014008,2]
[335466860,1724243443347,-481.28286726,0.00014008,2]
[335466862,1724243443356,-500.0,0.00014008,2]
[335466864,1724243443366,-500.0,0.00014008,2]
[335466866,1724243443375,-500.0,0.00014008,2]
[335466868,1724243443384,-500.0,0.00014008,2]
[335466870,1724243443393,-500.0,0.00014008,2]
[335466872,1724243443402,-500.0,0.00014008,2]
[335466874,1724243443411,-500.0,0.00014008,2]